bitfinex-derivatives/quotes_SOLF0:USTF0_20250614
["timestamp","ask_amount","ask_price","bid_price","bid_amount"]
[1749887657989,8.95763618,146.21,146.19,6.88655526]
[1749887659182,6.8368,146.2,146.19,0.04955526]
[1749887659384,8.95803618,146.2,146.19,0.04955526]
[1749887660189,2.12123618,146.2,146.19,6.88685526]
[1749887660694,2.12123618,146.2,146.19,0.04955526]
[1749887660880,8.95803618,146.2,146.19,0.04955526]
[1749887667100,6.8366,146.21,146.19,6.88685526]
[1749887667293,8.95783618,146.21,146.19,6.88685526]
[1749887668102,8.95783618,146.21,146.19,13.2611891]
[1749887668600,8.95783618,146.21,146.19,13.26143059]
[1749887669401,6.8368,146.2,146.19,6.42413059]
[1749887670103,6.8368,146.2,146.19,6.88685526]
[1749887671003,8.95783618,146.21,146.19,6.88685526]
[1749887672003,6.8368,146.2,146.19,0.04955526]
[1749887672203,8.95819035,146.2,146.19,0.04955526]
[1749887675304,8.95819035,146.2,146.19,6.42434984]
[1749887676898,8.95819035,146.2,146.19,0.04955526]
[1749887677200,8.95819035,146.2,146.19,6.42463347]
[1749887682410,8.95819035,146.2,146.19,0.04955526]
[1749887682615,8.95819035,146.2,146.16,8.49939379]
[1749887682616,6.8382,146.17,146.16,6.37507821]
[1749887682916,8.95959035,146.17,146.16,6.37507821]
[1749887683105,8.95959035,146.17,146.16,13.21377821]
[1749887683302,2.12139035,146.17,146.16,13.21377821]
[1749887684515,9.00924172,146.18,146.16,13.21377821]
[1749887685018,9.00982545,146.18,146.16,13.21377821]
[1749887689618,9.00982545,146.18,146.16,6.8387]
[1749887691517,8.96037408,146.17,146.15,6.4248472]
[1749887691919,2.12197408,146.16,146.15,0.04976899]
[1749887692315,8.96067408,146.16,146.15,0.04976899]
[1749887693418,6.8387,146.16,146.15,0.04976899]
[1749887693622,8.96067408,146.16,146.15,0.04976899]
[1749887696616,2.17192545,146.18,146.15,0.04976899]
[1749887697216,9.00972545,146.18,146.16,6.8384]
[1749887700720,2.17192545,146.18,146.17,6.8382]
[1749887700925,0.04995137,146.18,146.15,6.4248472]
[1749887701227,0.04995137,146.18,146.16,6.8383]
[1749887702021,0.04995137,146.18,146.17,6.8382]
[1749887702526,2.17192545,146.18,146.15,0.04976899]
[1749887703026,9.00962545,146.18,146.16,6.8383]
[1749887703419,2.17192545,146.18,146.16,6.8383]
[1749887703722,0.04995137,146.18,146.15,6.4248472]
[1749887703926,2.17192545,146.18,146.15,6.4248472]
[1749887704423,2.17192545,146.18,146.16,6.8387]
[1749887705525,2.12197408,146.17,146.16,6.35908878]
[1749887705824,2.12197408,146.17,146.15,0.04976899]
[1749887706026,2.12197408,146.16,146.15,0.04976899]
[1749887707228,2.12197408,146.16,146.15,6.88886899]
[1749887707526,2.12197408,146.16,146.15,0.04976899]
[1749887707527,8.96067408,146.16,146.15,0.04976899]
[1749887708425,2.12197408,146.16,146.15,0.04976899]
[1749887708619,8.96037408,146.17,146.15,0.04976899]
[1749887708823,8.96037408,146.17,146.15,6.88866899]
[1749887710526,6.8387,146.16,146.15,0.04976899]
[1749887711230,6.8387,146.16,146.15,6.88886899]
[1749887712416,6.8387,146.16,146.15,0.04976899]
[1749887712823,8.96067408,146.16,146.15,0.04976899]
[1749887713628,6.8387,146.16,146.15,0.04976899]
[1749887715424,6.8387,146.16,146.15,6.88886899]
[1749887716134,6.8384,146.17,146.16,6.8387]
[1749887716338,2.17192545,146.18,146.16,6.8387]
[1749887716631,6.88785137,146.18,146.16,6.8387]
[1749887717335,0.04995137,146.18,146.17,6.8382]
[1749887740961,0.04995137,146.18,146.16,40.3785]
[1749887741347,0.04995137,146.18,146.16,33.54]
[1749887742658,0.04995137,146.18,146.17,6.8382]
[1749887766969,2.17155807,146.18,146.16,33.54]
[1749887767169,2.1216067,146.17,146.16,33.54]
[1749887768175,8.9598067,146.17,146.16,33.54]
[1749887768575,8.9598067,146.17,146.15,0.04976899]
[1749887769181,8.9598067,146.17,146.15,6.88876899]
[1749887770178,6.8387,146.16,146.15,0.04976899]
[1749887770781,8.9601067,146.17,146.15,6.88886899]
[1749887771083,6.8385,146.17,146.15,6.88886899]
[1749887778392,9.00955807,146.18,146.15,6.88886899]
[1749887779093,6.8382,146.17,146.15,6.88886899]
[1749887781991,0.04995137,146.18,146.16,2.1216067]
[1749887782192,0.04995137,146.18,146.17,35.6216067]
[1749887782392,8.9572067,146.23,146.17,35.6216067]
[1749887782593,6.8356,146.23,146.19,2.1216067]
[1749887783102,6.8356,146.23,146.2,6.8365]
[1749887783496,6.88411261,146.23,146.2,6.88855658]
[1749887784099,0.04851261,146.23,146.21,6.8361]
[1749887785206,6.88401261,146.23,146.21,6.8361]
[1749887785396,9.00561931,146.23,146.21,6.8361]
[1749887791203,6.88401261,146.23,146.21,6.8361]
[1749887791405,6.88401261,146.23,146.2,6.88855658]
[1749887795502,0.04851261,146.23,146.21,6.8362]
[1749887796407,0.04851261,146.23,146.22,6.8358]
[1749887797303,0.04851261,146.23,146.21,40.3361]
[1749887798207,0.04851261,146.23,146.22,6.8358]
[1749887810414,0.04851261,146.23,146.21,40.3361]
[1749887810617,0.04851261,146.23,146.21,33.5]
[1749887811714,0.04851261,146.23,146.22,6.8358]
[1749887812906,2.17011931,146.23,146.22,6.8358]
[1749887813717,9.00551931,146.23,146.22,6.8358]
[1749887814215,9.00551931,146.23,146.21,40.3361]
[1749887815521,6.8358,146.22,146.21,33.5]
[1749887822323,2.17011931,146.23,146.21,40.3363]
[1749887822823,9.00581931,146.23,146.21,40.3363]
[1749887823410,0.04851261,146.23,146.22,6.8358]
[1749887824321,0.04851261,146.23,146.22,8.9574067]
[1749887828328,33.5,146.29,146.22,2.1216067]
[1749887828624,2.1216067,146.27,146.23,2.1216067]
[1749887829027,2.1216067,146.27,146.25,6.834]
[1749887829521,2.17219224,146.27,146.25,6.88097628]
[1749887831425,0.05058554,146.27,146.25,6.88097628]
[1749887831623,2.17219224,146.27,146.25,6.88097628]
[1749887831829,9.00569224,146.27,146.25,6.88097628]
[1749887832529,8.9556067,146.26,146.25,0.04697628]
[1749887844041,6.8353,146.24,146.21,35.7989]
[1749887844242,2.1216067,146.23,146.21,35.7989]
[1749887845035,2.1677538,146.23,146.21,35.84202931]
[1749887845736,2.1677538,146.23,146.22,6.8358]
[1749887846439,0.0461471,146.23,146.22,6.8358]
[1749887848944,9.0031538,146.23,146.21,42.67812931]
[1749887849139,2.1677538,146.23,146.21,35.84202931]
[1749887850740,2.1677538,146.23,146.22,6.8358]
[1749887851536,0.0461471,146.23,146.22,6.8358]
[1749887858150,2.1677538,146.23,146.22,6.8358]
[1749887859937,2.1677538,146.23,146.21,42.67812931]
[1749887861951,2.1677538,146.23,146.22,6.8358]
[1749887863358,2.1677538,146.23,146.21,42.67822931]
[1749887863858,9.0031538,146.23,146.21,42.67822931]
[1749887865863,0.0461471,146.23,146.22,6.8358]
[1749887868762,2.1677538,146.23,146.22,6.8358]
[1749887868957,2.1677538,146.23,146.21,33.54312931]
[1749887869152,2.1216067,146.22,146.21,33.54312931]
[1749887870661,8.9574067,146.22,146.21,33.54312931]
[1749887873074,6.8358,146.22,146.21,33.54312931]
[1749887873272,8.9574067,146.22,146.21,33.54312931]
[1749887883383,9.0033538,146.23,146.21,40.37942931]
[1749887883877,2.1677538,146.23,146.21,40.37942931]
[1749887884680,6.8358,146.22,146.21,40.37942931]
[1749887885780,9.0032538,146.23,146.21,40.37942931]
[1749887886983,6.8816471,146.23,146.21,40.37942931]
[1749887887189,2.11922756,146.28,146.22,2.11922756]
[1749887887588,2.11922756,146.28,146.25,6.8341]
[1749887887790,2.11923315,146.27,146.25,6.8341]
[1749887888179,2.16391024,146.27,146.25,6.87954382]
[1749887888690,2.11923315,146.26,146.25,0.04544382]
[1749887889682,2.11923315,146.26,146.25,6.87984382]
[1749887891585,2.11923315,146.26,146.25,0.04544382]
[1749887893791,8.95323315,146.26,146.25,0.04544382]
[1749887908809,2.11923315,146.26,146.21,33.5]
[1749887909108,2.11923315,146.22,146.21,33.5]
[1749887909495,8.95503315,146.22,146.21,33.5]
[1749887914930,6.8363,146.21,146.2,0.04459316]
[1749887915121,8.95553315,146.21,146.2,0.04459316]
[1749887921234,6.836,146.22,146.2,0.04459316]
[1749887921431,2.11923315,146.21,146.2,0.04459316]
[1749887922726,2.11923315,146.21,146.2,6.88109316]
[1749887933448,6.8361,146.22,146.2,6.88109316]
[1749887933636,2.11923315,146.21,146.2,6.88109316]
[1749887944648,8.95553315,146.21,146.2,6.88109316]
[1749887947053,2.11923315,146.21,146.2,6.88109316]
[1749887947449,2.11923315,146.21,146.2,0.04459316]
[1749887947750,8.95553315,146.21,146.2,0.04459316]
[1749887990189,6.8372,146.19,146.18,33.44]
[1749887990384,2.11923315,146.19,146.15,48.7613018]
[1749887990586,2.11923315,146.17,146.15,48.7613018]
[1749887991391,2.17162845,146.17,146.15,48.80751889]
[1749887992292,2.17162845,146.17,146.15,33.48621709]
[1749887992686,2.11923315,146.16,146.15,33.48621709]
[1749887996695,8.95793315,146.16,146.15,33.48621709]
[1749888000482,6.8387,146.16,146.15,33.48621709]
[1749888000891,6.8387,146.16,146.15,0.04621709]
[1749888025913,6.8906953,146.17,146.15,0.04621709]
[1749888026114,0.0523953,146.17,146.16,6.8386]
[1749888027618,6.8371,146.2,146.18,6.8377]
[1749888028012,6.8371,146.2,146.16,33.42]
[1749888028309,6.8371,146.2,146.17,6.8379]
[1749888028616,6.8374,146.19,146.17,6.88369447]
[1749888031321,6.88065245,146.2,146.18,6.8377]
[1749888032511,0.04365245,146.2,146.18,6.8377]
[1749888033416,0.04365245,146.2,146.19,6.8372]
[1749888035415,0.04365245,146.2,146.18,6.8375]
[1749888035721,6.88055245,146.2,146.18,6.8375]
[1749888036424,0.04365245,146.2,146.18,6.8375]
[1749888037524,0.04365245,146.2,146.17,2.26869447]
[1749888038328,0.04365245,146.2,146.18,6.8373]
[1749888039535,0.04365245,146.2,146.19,6.8372]
[1749888040136,0.04365245,146.2,146.18,6.8375]
[1749888048439,0.04365245,146.2,146.19,6.8373]
[1749888051740,0.04365245,146.2,146.18,6.8375]
[1749888055444,6.88045245,146.2,146.18,6.8375]
[1749888055739,0.04365245,146.2,146.17,2.26869447]
[1749888055943,0.04365245,146.2,146.17,0.04579447]
[1749888056446,6.8377,146.18,146.17,0.04579447]
[1749888058948,6.8396,146.14,146.13,35.5859]
[1749888059246,33.4,146.2,146.13,35.5859]
[1749888059646,6.8393,146.15,146.13,35.5859]
[1749888060150,6.88689216,146.15,146.13,35.63331371]
[1749888060749,6.8396,146.14,146.13,33.44741371]
[1749888064949,6.88699216,146.15,146.13,33.44741371]
[1749888066151,6.8396,146.14,146.13,33.44741371]
[1749888066351,0.04759216,146.15,146.13,33.44741371]
[1749888066555,0.04759216,146.15,146.13,40.28721371]
[1749888066850,0.04759216,146.15,146.13,33.44741371]
[1749888067153,6.88679216,146.15,146.13,33.44741371]
[1749888068450,0.04759216,146.15,146.13,40.28741371]
[1749888069554,0.04759216,146.15,146.14,6.8396]
[1749888070056,2.1799,146.22,146.14,2.2555]
[1749888070259,6.8383,146.17,146.15,6.8389]
[1749888071054,6.88537848,146.17,146.15,6.88713057]
[1749888072557,0.04707848,146.17,146.16,6.8387]
[1749888083775,6.88527848,146.17,146.15,13.25595977]
[1749888085863,0.04707848,146.17,146.15,13.25595977]
[1749888086067,6.8387,146.16,146.15,0.04823057]
[1749888086264,0.04707848,146.17,146.11,6.3688292]
[1749888086465,6.8405,146.12,146.1,39.7688292]
[1749888086658,38.0402,146.19,146.1,39.7688292]
[1749888087058,4.60212087,146.18,146.1,39.7688292]
[1749888087263,6.8403,146.13,146.1,46.6100292]
[1749888087563,6.8403,146.13,146.1,46.65740526]
[1749888088371,6.8403,146.13,146.1,40.28857606]
[1749888088871,6.8406,146.12,146.1,33.44737606]
[1749888089068,6.8914679,146.12,146.1,33.44737606]
[1749888092169,0.0508679,146.12,146.1,40.28867606]
[1749888093368,6.8914679,146.12,146.1,33.44737606]
[1749888095886,6.841,146.11,146.1,33.44737606]
[1749888097183,6.8916679,146.12,146.1,33.44737606]
[1749888098286,6.841,146.11,146.1,33.44737606]
[1749888102089,6.841,146.11,146.1,0.04737606]
[1749888103991,0.0508679,146.12,146.07,33.4]
[1749888105089,0.0508679,146.12,146.08,0.04330146]
[1749888105284,0.04397284,146.11,146.08,0.04330146]
[1749888105784,6.8419,146.09,146.08,0.04330146]
[1749888106694,6.8417,146.1,146.08,0.04330146]
[1749888112000,6.8419,146.09,146.08,0.04330146]
[1749888114198,0.04397284,146.11,146.08,0.04330146]
[1749888114697,6.88517284,146.11,146.08,0.04330146]
[1749888114998,0.04397284,146.11,146.08,33.44330146]
[1749888115298,6.8418,146.1,146.08,40.28560146]
[1749888116497,6.8419,146.09,146.08,33.44330146]
[1749888121008,0.04397284,146.11,146.08,33.44330146]
[1749888122401,6.88517284,146.11,146.08,40.28550146]
[1749888123505,6.88517284,146.11,146.09,6.8419]
[1749888124697,0.04397284,146.11,146.09,6.8419]
[1749888126502,6.88497284,146.11,146.09,6.8419]
[1749888128205,0.04397284,146.11,146.09,6.8419]
[1749888129206,0.04397284,146.11,146.08,35.80880146]
[1749888129207,0.04397284,146.11,146.1,6.8415]
[1749888129403,6.88497284,146.11,146.1,6.8415]
[1749888132313,6.88497284,146.11,146.09,13.2105292]
[1749888136219,6.8415,146.1,146.09,6.3688292]
[1749888137818,6.8415,146.1,146.08,49.01983066]
[1749888139220,6.8415,146.1,146.09,6.3688292]
[1749888150631,6.8419,146.09,146.08,39.81213066]
[1749888150934,6.8419,146.09,146.08,0.04330146]
[1749888152041,6.8433,146.06,146.05,39.7688292]
[1749888152236,6.8433,146.06,146.03,8.49574926]
[1749888152237,13.682,146.11,146.04,6.3688292]
[1749888152428,7.08873643,146.1,146.04,6.3688292]
[1749888152739,6.8443,146.04,146.03,6.3688292]
[1749888153234,33.38,146.08,146.02,39.801509]
[1749888153235,6.8447,146.03,146.02,39.801509]
[1749888154333,6.8447,146.03,146.02,33.4326798]
[1749888157044,6.8447,146.03,146.02,0.0526798]
[1749888159840,6.8461,146.0,145.99,33.4]
[1749888161043,6.88956795,146.01,145.99,33.4]
[1749888161235,0.04730246,146.01,145.99,33.44469817]
[1749888162237,0.04730246,146.01,145.99,40.29099817]
[1749888162934,6.89300246,146.01,145.99,40.29099817]
[1749888163542,6.89300246,146.01,145.99,33.44469817]
[1749888164437,0.04730246,146.01,145.99,40.29119817]
[1749888165247,0.04730246,146.01,145.99,33.44469817]
[1749888166736,6.89310246,146.01,145.99,40.29109817]
[1749888173155,6.8461,146.0,145.99,33.44469817]
[1749888195973,6.8461,146.0,145.99,9.817e-05]
[1749888200180,9.35721163,146.0,145.99,9.817e-05]
[1749888200380,9.35721178,146.0,145.99,9.817e-05]
[1749888200580,9.35717156,146.0,145.99,9.817e-05]
[1749888200977,6.8461,146.0,145.99,9.817e-05]
[1749888204078,6.89320246,146.01,145.99,9.817e-05]
[1749888204279,0.04730246,146.01,145.99,9.817e-05]
[1749888204681,6.8461,146.0,145.99,9.817e-05]
[1749888216900,9.35766573,146.0,145.99,9.817e-05]
[1749888217195,6.8461,146.0,145.99,9.817e-05]
[1749888217404,9.35766573,146.0,145.99,9.817e-05]
[1749888217700,9.35766366,146.0,145.99,9.817e-05]
[1749888218594,6.8461,146.0,145.99,9.817e-05]
[1749888218904,9.35768128,146.0,145.99,9.817e-05]
[1749888219505,9.3574145,146.0,145.99,9.817e-05]
[1749888219708,9.35739649,146.0,145.99,9.817e-05]
[1749888220105,6.8461,146.0,145.99,9.817e-05]
[1749888220320,9.35740988,146.0,145.99,9.817e-05]
[1749888220612,9.35740829,146.0,145.99,9.817e-05]
[1749888221015,6.8461,146.0,145.99,9.817e-05]
[1749888221513,9.35739491,146.0,145.99,9.817e-05]
[1749888221710,6.8461,146.0,145.99,9.817e-05]
[1749888221911,9.35724285,146.0,145.99,9.817e-05]
[1749888222211,9.35724443,146.0,145.99,9.817e-05]
[1749888222410,9.35726576,146.0,145.99,9.817e-05]
[1749888223608,9.35728935,146.0,145.99,9.817e-05]
[1749888224412,9.35760933,146.0,145.99,9.817e-05]
[1749888224600,6.8461,146.0,145.99,9.817e-05]
[1749888224809,9.35754306,146.0,145.99,9.817e-05]
[1749888225917,6.8461,146.0,145.99,9.817e-05]
[1749888233728,9.35850665,146.0,145.99,9.817e-05]
[1749888233925,6.8461,146.0,145.99,9.817e-05]
[1749888234225,9.35848172,146.0,145.99,9.817e-05]
[1749888234427,6.8461,146.0,145.99,9.817e-05]
[1749888235434,8.97398688,146.0,145.99,9.817e-05]
[1749888247836,6.8476,145.97,145.96,6.3688292]
[1749888248131,8.97548688,145.97,145.96,6.3688292]
[1749888248537,2.12788688,145.97,145.94,8.49574926]
[1749888248833,2.12788688,145.95,145.94,0.05027705]
[1749888249031,2.12788688,145.96,145.94,0.05027705]
[1749888249225,6.8487,145.95,145.94,0.05027705]
[1749888252430,0.05228635,145.97,145.94,2.17816393]
[1749888252725,0.05228635,145.97,145.95,35.60788688]
[1749888252930,6.90008635,145.97,145.95,42.45618688]
[1749888254931,6.90008635,145.97,145.95,40.3283]
[1749888255438,6.848,145.96,145.95,33.48]
[1749888258228,8.97588688,145.96,145.95,33.48]
[1749888258427,6.8485,145.95,145.94,0.05027705]
[1749888258634,8.97638688,145.95,145.94,0.05027705]
[1749888264847,8.97638688,145.95,145.94,7.705e-05]
[1749888266552,11.47800331,145.95,145.94,7.705e-05]
[1749888267052,8.97638688,145.95,145.94,7.705e-05]
[1749888277465,6.8508,145.9,145.89,33.48]
[1749888278360,6.8516,145.89,145.88,0.04721309]
[1749888278761,2.17683188,145.91,145.88,0.04721309]
[1749888278962,6.8511,145.9,145.88,0.04721309]
[1749888279268,0.048945,145.91,145.88,2.17509997]
[1749888280769,6.8513,145.89,145.88,2.17509997]
[1749888281772,6.8513,145.89,145.88,0.04721309]
[1749888286075,8.97918688,145.89,145.88,0.04721309]
[1749888287870,6.8513,145.89,145.88,0.04721309]
[1749888297274,0.048945,145.91,145.88,2.17509997]
[1749888297477,0.048945,145.91,145.88,2.31511309]
[1749888297676,6.899645,145.91,145.89,8.97898688]
[1749888298179,6.8508,145.9,145.89,2.12788688]
[1749888298975,0.048945,145.91,145.89,2.12788688]
[1749888299579,0.048945,145.91,145.9,2.12788688]
[1749888301582,0.048945,145.91,145.9,8.97878688]
[1749888302178,0.048945,145.91,145.9,6.8509]
[1749888302378,0.048945,145.91,145.9,8.97878688]
[1749888302681,0.048945,145.91,145.9,6.8509]
[1749888302884,0.048945,145.91,145.9,8.97878688]
[1749888303886,0.048945,145.91,145.9,6.8509]
[1749888304082,0.048945,145.91,145.9,8.97878688]
[1749888308581,0.048945,145.91,145.9,15.36898479]
[1749888309590,2.12788688,145.95,145.91,2.12788688]
[1749888309781,2.12788688,145.96,145.91,42.03666911]
[1749888309980,6.8497,145.93,145.91,48.88686911]
[1749888310483,6.89582777,145.93,145.91,48.9351405]
[1749888311180,0.04612777,145.93,145.92,6.8499]
[1749888311381,0.04612777,145.93,145.92,8.97778688]
[1749888312183,0.04612777,145.93,145.92,15.36656911]
[1749888312683,0.04612777,145.93,145.92,2.12788688]
[1749888314391,0.04612777,145.93,145.92,8.97778688]
[1749888314591,6.89552777,145.93,145.92,2.12788688]
[1749888315193,0.04612777,145.93,145.92,2.12788688]
[1749888315494,0.04612777,145.93,145.92,8.97778688]
[1749888318483,0.04612777,145.93,145.92,15.36656911]
[1749888321791,6.38617842,145.98,145.94,6.8485]
[1749888321996,6.38617842,145.98,145.95,2.12788688]
[1749888322394,6.8478,145.97,145.95,2.12788688]
[1749888322696,0.05072931,145.97,145.95,2.17938662]
[1749888322896,6.848,145.96,145.95,2.17938662]
[1749888324201,6.848,145.96,145.95,0.05149974]
[1749888335310,8.97588688,145.96,145.95,0.05149974]
[1749888335904,6.848,145.96,145.95,0.05149974]
[1749888346211,8.97588688,145.96,145.95,0.05149974]
[1749888349020,6.8499,145.92,145.91,41.99685038]
[1749888351622,6.8499,145.92,145.91,35.60788688]
[1749888352125,6.8499,145.92,145.91,33.48]
[1749888352310,6.8499,145.92,145.91,35.60788688]
[1749888354830,6.8499,145.92,145.91,33.48]
[1749888359021,6.8499,145.92,145.91,35.60788688]
[1749888361934,6.8499,145.92,145.91,33.48]
[1749888371243,6.8504,145.91,145.9,0.0517537]
[1749888372341,8.97828688,145.91,145.9,0.0517537]
[1749888374733,6.8526,145.87,145.85,439.08459205]
[1749888374940,39.86437042,145.93,145.83,6.39619205]
[1749888375241,33.46,145.93,145.85,2.12788688]
[1749888375434,33.46,145.93,145.87,2.12788688]
[1749888375633,2.12788688,145.91,145.87,2.12788688]
[1749888375939,0.05240727,145.9,145.88,0.04573018]
[1749888376846,6.8513,145.89,145.88,0.04573018]
[1749888383346,6.90340727,145.9,145.88,0.04573018]
[1749888383549,6.90340727,145.9,145.89,2.12788688]
[1749888385243,6.90340727,145.9,145.88,0.04573018]
[1749888385244,6.8513,145.89,145.88,0.04573018]
[1749888393854,6.8513,145.89,145.88,2.17361706]
[1749888395852,6.8513,145.89,145.88,0.04573018]
[1749888397648,8.97918688,145.89,145.88,0.04573018]
[1749888401561,6.8513,145.89,145.88,0.04573018]
[1749888403959,6.8513,145.89,145.88,3.018e-05]
[1749888404166,8.97918688,145.89,145.88,3.018e-05]
[1749888406766,6.8513,145.89,145.88,3.018e-05]
[1749888407177,8.97918688,145.89,145.88,3.018e-05]
[1749888409069,6.8541,145.83,145.81,8.52407893]
[1749888409868,6.8546,145.82,145.81,6.39619205]
[1749888410565,8.98248688,145.82,145.81,6.39619205]
[1749888410869,6.8551,145.81,145.8,40.62640371]
[1749888412667,6.8551,145.81,145.8,34.23021166]
[1749888415773,6.8546,145.82,145.8,34.23021166]
[1749888415973,6.8546,145.82,145.8,42.75429059]
[1749888416174,0.0506992,145.83,145.81,2.12788688]
[1749888416474,6.9050992,145.83,145.81,8.98288688]
[1749888416662,6.9050992,145.83,145.82,2.12788688]
[1749888417572,0.0506992,145.83,145.82,8.98248688]
[1749888417879,2.12788688,145.87,145.82,15.37867893]
[1749888418174,6.8537,145.84,145.82,15.37867893]
[1749888418472,2.12788688,145.86,145.82,6.39619205]
[1749888418778,6.8544,145.83,145.81,8.52407893]
[1749888418972,6.8544,145.83,145.81,8.57355689]
[1749888419272,6.8538,145.84,145.81,6.44567001]
[1749888421076,6.8538,145.84,145.82,6.8544]
[1749888421579,6.8541,145.83,145.81,13.30057001]
[1749888421875,0.04512043,145.85,145.81,0.04947796]
[1749888422264,6.8546,145.82,145.81,0.04947796]
[1749888433582,6.8544,145.83,145.81,0.04947796]
[1749888434880,6.8546,145.82,145.81,0.04947796]
[1749888436890,6.8546,145.83,145.81,6.90457796]
[1749888437078,6.8546,145.83,145.81,0.04947796]
[1749888437885,6.8539,145.84,145.81,0.04947796]
[1749888438087,0.04512043,145.85,145.81,0.04947796]
[1749888438284,0.04512043,145.85,145.81,6.90417796]
[1749888438782,6.854,145.84,145.81,6.90417796]
[1749888438982,0.04512043,145.85,145.81,6.44567001]
[1749888439181,6.89852043,145.85,145.81,6.44567001]
[1749888439377,6.89852043,145.85,145.83,6.8541]
[1749888440181,0.04512043,145.85,145.84,6.8537]
[1749888440587,0.04512043,145.85,145.84,41.1337]
[1749888441289,6.89832043,145.85,145.84,34.28]
[1749888443087,0.04512043,145.85,145.84,41.1337]
[1749888443281,0.04512043,145.85,145.84,34.28]
[1749888443688,6.89832043,145.85,145.84,34.28]
[1749888444990,6.8546,145.82,145.81,34.32947796]
[1749888445787,6.8543,145.83,145.81,34.32947796]
[1749888447190,6.8543,145.83,145.81,40.70869098]
[1749888447787,6.8546,145.82,145.81,40.70869098]
[1749888447995,6.8546,145.82,145.81,34.32947796]
[1749888449396,6.8543,145.83,145.81,34.32947796]
[1749888450986,6.8543,145.83,145.81,40.70869098]
[1749888451790,6.8538,145.84,145.81,47.56369098]
[1749888454296,6.8541,145.83,145.81,47.56369098]
[1749888454794,6.854,145.84,145.81,47.56369098]
[1749888454998,6.854,145.84,145.82,6.8546]
[1749888455295,6.8542,145.83,145.81,40.70869098]
[1749888455594,0.04512043,145.85,145.81,40.70869098]
[1749888455794,0.04512043,145.85,145.82,6.37921302]
[1749888456095,6.89832043,145.85,145.83,6.8539]
[1749888456698,6.89832043,145.85,145.83,13.23311302]
[1749888456895,0.04512043,145.85,145.83,13.23311302]
[1749888458797,6.89832043,145.85,145.83,13.23311302]
[1749888461403,6.89832043,145.85,145.83,6.37921302]
[1749888461800,0.04512043,145.85,145.83,6.37921302]
[1749888462103,0.04512043,145.85,145.83,13.23301302]
[1749888462799,6.89862043,145.85,145.83,6.37921302]
[1749888467213,6.89862043,145.85,145.83,13.23331302]
[1749888469308,6.89862043,145.85,145.83,8.5104571]
[1749888469611,6.8537,145.84,145.83,6.37921302]
[1749888471210,6.8537,145.84,145.82,13.23361302]
[1749888471411,6.8537,145.84,145.82,6.8544]
[1749888476014,6.8537,145.84,145.82,13.23361302]
[1749888477217,6.89852043,145.85,145.83,6.8541]
[1749888477515,0.04512043,145.85,145.82,6.37921302]
[1749888478313,6.8537,145.84,145.82,13.23341302]
[1749888478717,0.04512043,145.85,145.83,6.37921302]
[1749888479118,0.04512043,145.85,145.83,13.23311302]
[1749888479314,0.04512043,145.85,145.83,8.5104571]
[1749888480417,0.04512043,145.85,145.84,6.8537]
[1749888480717,0.04512043,145.85,145.83,6.37921302]
[1749888481117,0.04512043,145.85,145.82,8.5104571]
[1749888481520,6.89832043,145.85,145.83,6.8539]
[1749888486121,6.8537,145.84,145.82,15.3648571]
[1749888486621,6.8537,145.84,145.82,13.23361302]
[1749888487221,6.8541,145.83,145.82,6.37921302]
[1749888491725,6.8546,145.82,145.81,40.70869098]
[1749888495231,6.8546,145.82,145.81,34.32947796]
[1749888495731,6.8546,145.82,145.81,0.04947796]
[1749888495923,8.98584408,145.82,145.81,0.04947796]
[1749888499831,2.13124408,145.82,145.78,40.45921302]
[1749888500222,6.856,145.8,145.78,34.08]
[1749888500429,2.13124408,145.82,145.78,34.08]
[1749888500831,0.05028221,145.81,145.79,0.04807581]
[1749888501737,6.8555,145.8,145.79,0.04807581]
[1749888505734,8.98674408,145.8,145.79,0.04807581]
[1749888508031,8.98674408,145.8,145.79,7.581e-05]
[1749888508233,6.8555,145.8,145.79,7.581e-05]
[1749888508432,8.98674408,145.8,145.79,7.581e-05]
[1749888520144,6.8555,145.8,145.79,7.581e-05]
[1749888520344,8.98674408,145.8,145.79,7.581e-05]
[1749888534649,6.8555,145.8,145.79,7.581e-05]
[1749888535049,8.98674408,145.8,145.79,7.581e-05]
[1749888536145,6.8555,145.8,145.79,7.581e-05]
[1749888537158,8.98674408,145.8,145.79,7.581e-05]
[1749888537354,6.8555,145.8,145.79,7.581e-05]
[1749888537556,8.98674408,145.8,145.79,7.581e-05]
[1749888540261,6.90568221,145.81,145.79,7.581e-05]
[1749888540459,0.05028221,145.81,145.79,2.13131989]
[1749888540763,34.76,145.88,145.8,39.20264408]
[1749888540957,1.19362031,145.9,145.83,2.13124408]
[1749888541154,2.13124408,145.88,145.84,2.13124408]
[1749888541355,6.853,145.86,145.84,36.89124408]